fUST/lending_fUST_20250205
["ID","MTS","AMOUNT","RATE_DAILY","PERIOD"]
[351700691,1738757441335,-500.0,0.00015688,2]
[351700692,1738757441345,-500.0,0.00015688,2]
[351700693,1738757441354,-500.0,0.00015688,2]
[351700694,1738757441364,-500.0,0.00015688,2]
[351700695,1738757441373,-522.87038383,0.00015688,2]
[351700696,1738757441384,-500.0,0.00015688,2]
[351700697,1738757441394,-500.0,0.00015688,2]
[351700698,1738757441404,-500.0,0.00015688,2]
[351700699,1738757441415,-500.0,0.00015688,2]
[351700700,1738757441423,-500.0,0.00015688,2]
[351700701,1738757441432,-549.21,0.00015688,2]
[351700702,1738757441440,-205.85701015,0.00015688,2]
[351700703,1738757441448,-500.0,0.00015688,2]
[351700704,1738757441457,-500.0,0.00015688,2]
[351700705,1738757441466,-500.0,0.00015688,2]
[351700706,1738757441475,-500.0,0.00015688,2]
[351700707,1738757441485,-630.46,0.00015688,2]
[351700708,1738757441494,-500.0,0.00015688,2]
[351700709,1738757441503,-500.0,0.00015688,2]
[351700710,1738757441511,-361.19426287,0.00015688,2]
[351700711,1738757441520,-500.0,0.00015688,2]
[351700712,1738757441530,-676.97,0.00015688,2]
[351700713,1738757441541,-500.0,0.00015688,2]
[351700714,1738757441550,-500.0,0.00015688,2]
[351700715,1738757441560,-500.0,0.00015688,2]
[351700716,1738757441569,-500.0,0.00015688,2]
[351700717,1738757441579,-500.0,0.00015688,2]
[351700718,1738757441588,-500.0,0.00015688,2]
[351700719,1738757441597,-500.0,0.00015688,2]
[351700720,1738757441606,-500.0,0.00015688,2]
[351700721,1738757441616,-500.0,0.00015688,2]
[351700722,1738757441626,-500.0,0.00015688,2]
[351700723,1738757441635,-500.0,0.00015688,2]
[351700724,1738757441645,-500.0,0.00015688,2]
[351700725,1738757441655,-500.0,0.00015688,2]
[351700726,1738757441666,-500.0,0.00015688,2]
[351700727,1738757441676,-500.0,0.00015688,2]
[351700728,1738757441687,-596.82,0.00015688,2]
[351700729,1738757441696,-500.0,0.00015688,2]
[351700730,1738757441706,-241.6954866,0.00015688,2]
[351700731,1738757441716,-519.30170467,0.00015688,2]
[351700732,1738757441725,-500.0,0.00015688,2]
[351700733,1738757441735,-500.0,0.00015688,2]
[351700734,1738757441745,-500.0,0.00015688,2]
[351700735,1738757441754,-500.0,0.00015688,2]
[351700736,1738757441764,-500.0,0.00015688,2]
[351700737,1738757441774,-500.0,0.00015688,2]
[351700738,1738757441783,-500.0,0.00015688,2]
[351700739,1738757441793,-301.0409529,0.00015688,2]
[351700740,1738757441803,-571.38,0.00015688,2]
[351700741,1738757441812,-500.0,0.00015688,2]
[351700742,1738757441822,-500.0,0.00015688,2]
[351700743,1738757441832,-500.0,0.00015688,2]
[351700744,1738757441841,-2147.31,0.00015688,2]
[351700745,1738757441851,-500.0,0.00015688,2]
[351700746,1738757441860,-500.0,0.00015688,2]
[351700747,1738757441870,-500.0,0.00015688,2]
[351700748,1738757441879,-500.0,0.00015688,2]
[351700749,1738757441892,-859.09,0.00015688,2]
[351700750,1738757441902,-500.0,0.00015688,2]
[351700751,1738757441913,-500.0,0.00015688,2]
[351700752,1738757441923,-358.23551106,0.00015688,2]
[351700753,1738757441933,-500.0,0.00015688,2]
[351700754,1738757441942,-500.0,0.00015688,2]
[351700755,1738757441952,-500.0,0.00015688,2]
[351700756,1738757441961,-517.63,0.00015688,2]
[351700757,1738757441974,-500.0,0.00015688,2]
[351700758,1738757441985,-857.2,0.00015688,2]
[351700759,1738757441994,-1029.07,0.00015688,2]
[351700760,1738757442003,-629.16,0.00015688,2]
[351700761,1738757442013,-629.16,0.00015688,2]
[351700762,1738757442023,-629.16,0.00015688,2]
[351700763,1738757442032,-629.16,0.00015688,2]
[351700764,1738757442042,-629.16,0.00015688,2]
[351700765,1738757442053,-629.16,0.00015688,2]
[351700766,1738757442063,-629.16,0.00015688,2]
[351700767,1738757442073,-629.16,0.00015688,2]
[351700768,1738757442083,-629.16,0.00015688,2]
[351700769,1738757442093,-629.16,0.00015688,2]
[351700770,1738757442103,-160.775917,0.00015688,2]
[351700771,1738757442113,-629.16,0.00015688,2]
[351700772,1738757442123,-160.775917,0.00015688,2]
[351700773,1738757442132,-629.16,0.00015688,2]
[351700774,1738757442142,-629.16,0.00015688,2]
[351700775,1738757442151,-160.775917,0.00015688,2]
[351700776,1738757442161,-500.0,0.00015688,2]
[351700777,1738757442171,-500.0,0.00015688,2]
[351700778,1738757442181,-160.775917,0.00015688,2]
[351700779,1738757442191,-160.775917,0.00015688,2]
[351700780,1738757442201,-160.775917,0.00015688,2]
[351700781,1738757442211,-564.815571,0.00015688,2]
[351700782,1738757442220,-564.815571,0.00015688,2]
[351700783,1738757442230,-564.815571,0.00015688,2]
[351700784,1738757442239,-564.815571,0.00015688,2]
[351700785,1738757442250,-564.815571,0.00015688,2]
[351700786,1738757442260,-564.815571,0.00015688,2]
[351700787,1738757442269,-500.0,0.00015688,2]
[351700788,1738757442279,-500.0,0.00015688,2]
[351700789,1738757442289,-500.0,0.00015688,2]
[351700790,1738757442299,-500.0,0.00015688,2]
[351700791,1738757442310,-151.0,0.00015688,2]
[351700792,1738757442320,-151.0,0.00015688,2]
[351700793,1738757442330,-500.0,0.00015688,2]
[351700794,1738757442339,-500.0,0.00015688,2]
[351700795,1738757442349,-5337.25,0.00015688,2]
[351700796,1738757442358,-608.92,0.00015688,2]
[351700797,1738757442368,-1352.32,0.00015688,2]
[351700798,1738757442377,-500.0,0.00015688,2]
[351700799,1738757442387,-151.0,0.00015688,2]
[351700800,1738757442396,-151.258767,0.00015688,2]
[351700801,1738757442406,-4662.38,0.00015688,2]
[351700802,1738757442415,-500.0,0.00015688,2]
[351700803,1738757442424,-894.53,0.00015688,2]
[351700804,1738757442434,-500.0,0.00015688,2]
[351700805,1738757442443,-524.97,0.00015688,2]
[351700806,1738757442452,-500.0,0.00015688,2]
[351700807,1738757442461,-500.0,0.00015688,2]
[351700808,1738757442470,-500.0,0.00015688,2]
[351700809,1738757442479,-3295.39,0.00015688,2]
[351700810,1738757442488,-500.0,0.00015688,2]
[351700811,1738757442498,-500.0,0.00015688,2]
[351700812,1738757442508,-500.0,0.00015688,2]
[351700813,1738757442517,-4600.62,0.00015688,2]
[351700814,1738757442526,-500.0,0.00015688,2]
[351700815,1738757442535,-937.354475,0.00015688,2]
[351700816,1738757442544,-500.0,0.00015688,2]
[351700817,1738757442555,-500.0,0.00015688,2]
[351700818,1738757442565,-1611.65,0.00015688,2]
[351700819,1738757442575,-500.0,0.00015688,2]
[351700820,1738757442585,-937.354475,0.00015688,2]
[351700821,1738757442595,-1051.77,0.00015688,2]
[351700822,1738757442605,-500.0,0.00015688,2]
[351700823,1738757442614,-500.0,0.00015688,2]
[351700824,1738757442624,-500.0,0.00015688,2]
[351700825,1738757442634,-720.38,0.00015688,2]
[351700826,1738757442644,-517.57578407,0.00015688,2]
[351700827,1738757442654,-500.0,0.00015688,2]
[351700828,1738757442663,-500.0,0.00015688,2]
[351700829,1738757442673,-9180.91,0.00015688,2]
[351700830,1738757442683,-193.79229967,0.00015688,2]
[351700831,1738757442692,-500.0,0.00015688,2]
[351700832,1738757442701,-500.0,0.00015688,2]
[351700833,1738757442711,-500.0,0.00015688,2]
[351700834,1738757442720,-500.0,0.00015688,2]
[351700835,1738757442730,-1737.56,0.00015688,2]
[351700836,1738757442740,-1657.05,0.00015688,2]
[351700838,1738757442749,-500.0,0.00015688,2]
[351700841,1738757442759,-500.0,0.00015688,2]
[351700843,1738757442768,-500.0,0.00015688,2]
[351700846,1738757442778,-3402.91,0.00015688,2]
[351700847,1738757442788,-500.0,0.00015688,2]
[351700848,1738757442798,-500.0,0.00015688,2]
[351700851,1738757442810,-523.46,0.00015688,2]
[351700853,1738757442819,-500.0,0.00015688,2]
[351700855,1738757442829,-500.0,0.00015688,2]
[351700856,1738757442839,-772.57,0.00015688,2]
[351700857,1738757442849,-1949.45,0.00015688,2]
[351700858,1738757442859,-500.0,0.00015688,2]
[351700860,1738757442869,-701.56,0.00015688,2]
[351700861,1738757442880,-1467.46,0.00015688,2]
[351700862,1738757442891,-431.67103725,0.00015688,2]
[351700864,1738757442901,-500.0,0.00015688,2]
[351700866,1738757442911,-502.71551613,0.00015688,2]
[351700867,1738757442921,-500.0,0.00015688,2]
[351700868,1738757442932,-647.71755536,0.00015688,2]
[351700869,1738757442942,-342.941288,0.00015688,2]
[351700870,1738757442951,-342.941288,0.00015688,2]
[351700871,1738757442960,-342.941288,0.00015688,2]
[351700872,1738757442972,-500.0,0.00015688,2]
[351700873,1738757442980,-500.0,0.00015688,2]
[351700874,1738757442990,-342.941288,0.00015688,2]
[351700875,1738757442999,-342.941288,0.00015688,2]
[351700876,1738757443009,-555.61,0.00015688,2]
[351700878,1738757443019,-342.941288,0.00015688,2]
[351700880,1738757443028,-500.0,0.00015688,2]
[351700882,1738757443037,-9332.9,0.00015688,2]
[351700884,1738757443046,-500.0,0.00015688,2]
[351700886,1738757443057,-500.0,0.00015688,2]
[351700888,1738757443066,-500.0,0.00015688,2]
[351700890,1738757443076,-500.0,0.00015688,2]
[351700892,1738757443086,-500.0,0.00015688,2]
[351700894,1738757443095,-500.0,0.00015688,2]
[351700896,1738757443105,-500.0,0.00015688,2]
[351700898,1738757443114,-612.57,0.00015688,2]
[351700900,1738757443123,-500.0,0.00015688,2]
[351700902,1738757443133,-500.0,0.00015688,2]
[351700904,1738757443142,-500.0,0.00015688,2]
[351700906,1738757443151,-151.0,0.00015688,2]
[351700907,1738757443160,-151.0,0.00015688,2]
[351700910,1738757443170,-37722.16355149,0.00015688,2]
[351700957,1738757443615,-268.735003,0.00015688,2]
[351700959,1738757443626,-331.014997,0.00015688,2]
[351700961,1738757443638,-5961.68644851,0.00015688,2]
[351700964,1738757443649,-151.0,0.00015688,2]
[351700966,1738757443659,-211.64226,0.00015688,2]
[351700968,1738757443668,-191.46263809,0.00015688,2]
[351700970,1738757443680,-308.53736191,0.00015688,2]
[351700972,1738757443690,-500.0,0.00015688,2]
[351700974,1738757443699,-2442.58,0.00015688,2]
[351700976,1738757443709,-2442.58,0.00015688,2]
[351700978,1738757443718,-2257.9103907,0.00015688,2]
[351700980,1738757443730,-184.6696093,0.00015688,2]
[351700982,1738757443740,-501.89632749,0.00015688,2]
[351700984,1738757443749,-2442.58,0.00015688,2]
[351700986,1738757443759,-552.51543277,0.00015688,2]
[351700988,1738757443771,-1601.06569073,0.00015688,2]
[351701008,1738757443949,184.735084,0.00013699,2]
[351701063,1738757444543,-172.396571,0.00015686,2]
[351701064,1738757444554,-288.9988765,0.00015688,2]
[351701065,1738757444564,-2442.59302981,0.00015688,2]
[351701066,1738757444574,-425.2021342,0.00015688,2]
[351701067,1738757444583,-500.0,0.00015688,2]
[351701068,1738757444593,-2926.88,0.00015688,2]
[351701069,1738757444602,-500.0,0.00015688,2]
[351701070,1738757444612,-5340.57609495,0.00015688,2]
[351701227,1738757446327,-1544.5,0.0001559,2]
[351701228,1738757446336,-588.5488988,0.0001559,2]
[351701232,1738757446381,-1427.23342519,0.0001559,2]
[351701905,1738757783425,272.420214,0.00013973,2]
[351701906,1738757935141,12562.95597463,0.0002,120]
[351701913,1738758403595,181.248605,0.00013699,2]
[351701915,1738758411147,5000.0,0.00015012,2]
[351701918,1738758425149,-166.0,0.00015068,2]
[351701919,1738758425179,-1212.19859573,0.00015301,2]
[351701920,1738758425209,-1212.19859572,0.00015335,2]
[351701921,1738758425240,-1212.19859572,0.00015369,2]
[351701922,1738758425268,-300.0,0.00015392,2]
[351701923,1738758425290,-6293.4013073,0.00015393,2]
[351701924,1738758425313,-465.00233693,0.00015401,2]
[351701925,1738758425334,-281.3128621,0.00015486,2]
[351701926,1738758425676,-281.31286206,0.00015487,2]
[351701927,1738758425698,-281.31286206,0.00015487,2]
[351701928,1738758425720,-281.31286206,0.00015488,2]
[351701929,1738758425741,-281.31286206,0.00015488,2]
[351701930,1738758425763,-500.0,0.00015573,2]
[351701931,1738758425785,-500.0,0.00015573,2]
[351701932,1738758425807,-500.0,0.00015573,2]
[351701933,1738758425830,-500.0,0.00015573,2]
[351701934,1738758425851,-120.09333425,0.00015573,2]
[351701951,1738758524593,150.999999,0.0002,120]
[351701965,1738758612391,5000.0,0.00015012,2]
[351701966,1738758620907,278.799204,0.00013973,2]
[351701967,1738758629341,5000.0,0.00015012,2]
[351702023,1738758632441,-4151.79427404,0.00015263,2]
[351702025,1738758632450,-300.0,0.00015572,2]
[351702027,1738758632460,-139.73997801,0.00015573,2]
[351702029,1738758632469,-508.3819502,0.00015573,2]
[351702031,1738758632479,-511.71483567,0.00015573,2]
[351702033,1738758632488,-500.0,0.00015573,2]
[351702035,1738758632497,-500.0,0.00015573,2]
[351702037,1738758632508,-523.564183,0.00015573,2]
[351702039,1738758632517,-500.0,0.00015573,2]
[351702041,1738758632527,-500.0,0.00015573,2]
[351702043,1738758632537,-600.3240991,0.00015573,2]
[351702045,1738758632546,-500.0,0.00015584,2]
[351702047,1738758632557,-7525.93,0.00015584,2]
[351702048,1738758632566,-1772.38,0.00015584,2]
[351702049,1738758632576,-3121.23,0.00015584,2]
[351702050,1738758632585,-1621.84,0.00015584,2]
[351702051,1738758632594,-1125.99,0.00015584,2]
[351702052,1738758632603,-500.0,0.00015584,2]
[351702053,1738758632613,-4997.2,0.00015584,2]
[351702054,1738758632622,-500.0,0.00015584,2]
[351702055,1738758632631,-500.0,0.00015584,2]
[351702056,1738758632641,-698.41,0.00015584,2]
[351702057,1738758632651,-500.0,0.00015585,2]
[351702058,1738758632661,-972.6,0.00015585,2]
[351702059,1738758632670,-500.0,0.00015585,2]
[351702060,1738758632680,-500.0,0.00015585,2]
[351702061,1738758632689,-500.0,0.00015585,2]
[351702062,1738758632698,-500.0,0.00015585,2]
[351702063,1738758632707,-12693.19,0.00015585,2]
[351702064,1738758632717,-985.01,0.00015585,2]
[351702065,1738758632726,-605.62,0.00015585,2]
[351702066,1738758632735,-1122.97,0.00015585,2]
[351702067,1738758632743,-718.5,0.00015585,2]
[351702068,1738758632753,-16148.01,0.00015585,2]
[351702069,1738758632762,-500.0,0.00015585,2]
[351702070,1738758632771,-8422.74,0.00015585,2]
[351702071,1738758632780,-500.0,0.00015585,2]
[351702072,1738758632790,-3329.4,0.00015585,2]
[351702073,1738758632802,-500.0,0.00015585,2]
[351702074,1738758632812,-9920.1,0.00015585,2]
[351702075,1738758632821,-710.97,0.00015585,2]
[351702076,1738758632829,-1365.22,0.00015585,2]
[351702077,1738758632839,-500.0,0.00015585,2]
[351702078,1738758632848,-546.01,0.00015585,2]
[351702079,1738758632856,-506.41,0.00015585,2]
[351702080,1738758632865,-1480.47,0.00015585,2]
[351702081,1738758632874,-500.0,0.00015585,2]
[351702082,1738758632883,-500.0,0.00015585,2]
[351702083,1738758632893,-500.0,0.00015585,2]
[351702084,1738758632902,-3789.05,0.00015585,2]
[351702085,1738758632911,-500.0,0.00015585,2]
[351702086,1738758632920,-500.0,0.00015585,2]
[351702087,1738758632929,-4639.90549698,0.00015585,2]
[351702088,1738758632940,-519.52250541,0.00015585,2]
[351702089,1738758633126,-1598.628564,0.00015585,2]
[351702137,1738758638534,-1638.19343361,0.00015585,2]
[351702139,1738758638544,-1755.08363431,0.00015585,2]
[351702550,1738758642934,-2464.0,0.00015585,2]
[351702561,1738758642994,-1000.0,0.00015585,2]
[351702966,1738758646593,-4930.35,0.00015429,2]
[351705465,1738758737525,1000.0,0.00018,30]
[351705467,1738758889735,1757.83353946,0.00015012,2]
[351705468,1738758889804,162.755,0.0001491,2]
[351705469,1738758903146,1000.47,0.00015011,2]
[351705471,1738758997681,2142.601073,0.00014577,2]
[351705472,1738759131551,848.20572596,0.00015012,2]
[351705473,1738759136977,1279.4543003,0.00014675,2]
[351705474,1738759152558,776.1331215,0.00014559,2]
[351705476,1738759213013,5000.0,0.00015012,2]
[351705477,1738759228580,1115.27549158,0.00015012,2]
[351705480,1738759276464,184.735084,0.00013699,2]
[351705481,1738759503288,5001.28,0.00015011,2]
[351705482,1738759511966,284.859243,0.00013973,2]
[351705483,1738759648621,157.469117,0.00014577,2]
[351705484,1738759648709,157.469117,0.00014601,2]
[351705485,1738759648942,157.469117,0.00014626,2]
[351705486,1738759649151,157.469117,0.0001465,2]
[351705487,1738759694619,4000.0,0.00018,30]
[351705488,1738759721532,4401.0,0.00020424,120]
[351705489,1738759749067,17170.4434879,0.00014693,2]
[351705490,1738759783461,520.807527,0.00014576,2]
[351705527,1738759832585,-353.43989995,0.00015175,2]
[351705529,1738759832594,-80.41929045,0.000154,2]
[351705534,1738759832643,-963.85,0.000154,2]
[351705542,1738759832702,-665.5101377,0.000154,2]
[351705544,1738759832712,-219.84122698,0.00015482,2]
[351705546,1738759832722,-24.43093683,0.00015573,2]
[351705733,1738759834795,4717.34040169,0.00015,2]
[351706097,1738759838454,-475.56906317,0.00015573,2]
[351706099,1738759838464,-500.0,0.00015573,2]
[351706101,1738759838474,-208.35469025,0.00015573,2]
[351706103,1738759838483,-326.96867808,0.00015573,2]
[351706105,1738759838495,-173.03132192,0.00015573,2]
[351706107,1738759838504,-500.0,0.00015573,2]
[351706109,1738759838514,-500.0,0.00015573,2]
[351706111,1738759838523,-300.0,0.00015579,2]
[351706113,1738759838533,-500.0,0.0001558,2]
[351706115,1738759838543,-7212.34,0.0001558,2]
[351706117,1738759838552,-2991.17,0.0001558,2]
[351706120,1738759838562,-1554.27,0.0001558,2]
[351706122,1738759838572,-1203.12,0.0001558,2]
[351706125,1738759838581,-500.0,0.0001558,2]
[351706127,1738759838590,-1079.08,0.00015581,2]
[351706129,1738759838599,-500.0,0.00015581,2]
[351706131,1738759838609,-500.0,0.00015581,2]
[351706133,1738759838619,-500.0,0.00015581,2]
[351706135,1738759838629,-500.0,0.00015581,2]
[351706137,1738759838640,-500.0,0.00015581,2]
[351706139,1738759838651,-286.71957163,0.00015581,2]
[351706141,1738759838660,-500.0,0.00015581,2]
[351706143,1738759838670,-500.0,0.00015581,2]
[351706145,1738759838680,-500.0,0.00015581,2]
[351706147,1738759838689,-500.0,0.00015581,2]
[351706149,1738759838698,-500.0,0.00015581,2]
[351706151,1738759838707,-500.0,0.00015581,2]
[351706153,1738759838716,-500.0,0.00015581,2]
[351706155,1738759838726,-500.0,0.00015581,2]
[351706157,1738759838736,-511.25278761,0.00015581,2]
[351706159,1738759838746,-500.0,0.00015581,2]
[351706161,1738759838757,-500.0,0.00015581,2]
[351706163,1738759838767,-500.0,0.00015581,2]
[351706165,1738759838776,-4788.98,0.00015581,2]
[351706167,1738759838785,-526.33,0.00015581,2]
[351706169,1738759838795,-500.0,0.00015581,2]
[351706171,1738759838805,-500.0,0.00015581,2]
[351706173,1738759838814,-500.0,0.00015581,2]
[351706175,1738759838824,-500.0,0.00015581,2]
[351706177,1738759838833,-500.0,0.00015581,2]
[351706179,1738759838842,-506.37325331,0.00015581,2]
[351706181,1738759838852,-500.0,0.00015581,2]
[351706183,1738759838861,-500.0,0.00015581,2]
[351706185,1738759838871,-500.0,0.00015581,2]
[351706187,1738759838880,-932.07,0.00015581,2]
[351706189,1738759838890,-12164.31,0.00015581,2]
[351706191,1738759838899,-500.0,0.00015581,2]
[351706193,1738759838909,-500.0,0.00015581,2]
[351706195,1738759838918,-500.0,0.00015581,2]
[351706197,1738759838927,-500.0,0.00015581,2]
[351706199,1738759838937,-280.36,0.00015581,2]
[351706201,1738759838947,-500.0,0.00015581,2]
[351706203,1738759838956,-943.96,0.00015581,2]
[351706205,1738759838966,-500.0,0.00015581,2]
[351706207,1738759838976,-500.0,0.00015581,2]
[351706209,1738759838986,-500.0,0.00015581,2]
[351706211,1738759838995,-500.0,0.00015581,2]
[351706213,1738759839005,-580.39,0.00015581,2]
[351706215,1738759839015,-500.0,0.00015581,2]
[351706217,1738759839024,-648.77,0.00015581,2]
[351706219,1738759839034,-500.0,0.00015581,2]
[351706221,1738759839043,-500.0,0.00015581,2]
[351706223,1738759839053,-520.56735,0.00015581,2]
[351706225,1738759839062,-500.0,0.00015581,2]
[351706227,1738759839072,-1076.18,0.00015581,2]
[351706229,1738759839082,-500.0,0.00015581,2]
[351706231,1738759839092,-500.0,0.00015581,2]
[351706233,1738759839101,-500.0,0.00015581,2]
[351706235,1738759839111,-500.0,0.00015581,2]
[351706237,1738759839120,-500.0,0.00015581,2]
[351706239,1738759839130,-688.56,0.00015581,2]
[351706241,1738759839139,-500.0,0.00015581,2]
[351706243,1738759839149,-315.90968522,0.00015581,2]
[351706246,1738759839162,-184.09031478,0.00015581,2]
[351706248,1738759839171,-500.0,0.00015581,2]
[351706250,1738759839181,-500.0,0.00015581,2]
[351706252,1738759839190,-500.0,0.00015581,2]
[351706254,1738759839199,-500.0,0.00015581,2]
[351706256,1738759839209,-500.0,0.00015581,2]
[351706258,1738759839219,-8071.79,0.00015581,2]
[351706260,1738759839228,-500.0,0.00015581,2]
[351706262,1738759839237,-547.57,0.00015581,2]
[351706264,1738759839248,-571.96,0.00015581,2]
[351706266,1738759839257,-19724.66,0.00015581,2]
[351706268,1738759839266,-4135.11,0.00015581,2]
[351706270,1738759839276,-500.0,0.00015581,2]
[351706272,1738759839285,-500.0,0.00015581,2]
[351706274,1738759839295,-500.0,0.00015581,2]
[351706276,1738759839304,-500.0,0.00015581,2]
[351706278,1738759839313,-823.3,0.00015581,2]
[351706280,1738759839322,-3335.12,0.00015581,2]
[351706282,1738759839331,-500.0,0.00015581,2]
[351706284,1738759839341,-712.25,0.00015581,2]
[351706286,1738759839351,-371.48801102,0.00015581,2]
[351706288,1738759839361,-500.0,0.00015581,2]
[351706290,1738759839370,-500.0,0.00015581,2]
[351706292,1738759839380,-1366.79,0.00015581,2]
[351706294,1738759839389,-4259.53789533,0.00015581,2]
[351706296,1738759839401,-5674.97210467,0.00015581,2]
[351706298,1738759839410,-500.0,0.00015581,2]
[351706300,1738759839419,-500.0,0.00015581,2]
[351706319,1738759839595,-500.0,0.00015581,2]
[351706321,1738759839607,-528.43,0.00015581,2]
[351706323,1738759839616,-500.0,0.00015581,2]
[351706325,1738759839627,-500.0,0.00015581,2]
[351706327,1738759839639,-547.0,0.00015581,2]
[351706329,1738759839649,-185.30817599,0.00015581,2]
[351706332,1738759839662,-314.69182401,0.00015581,2]
[351706334,1738759839671,-185.30817599,0.00015581,2]
[351706336,1738759839684,-314.69182401,0.00015581,2]
[351706338,1738759839694,-500.0,0.00015581,2]
[351706340,1738759839704,-500.0,0.00015581,2]
[351706342,1738759839714,-500.0,0.00015581,2]
[351706344,1738759839724,-500.0,0.00015581,2]
[351706346,1738759839733,-2057.84,0.00015581,2]
[351706348,1738759839743,-3631.17,0.00015581,2]
[351706350,1738759839752,-500.0,0.00015581,2]
[351706352,1738759839761,-1483.15,0.00015581,2]
[351706354,1738759839771,-500.0,0.00015581,2]
[351706356,1738759839780,-503.58,0.00015581,2]
[351706358,1738759839789,-8113.01,0.00015581,2]
[351706360,1738759839799,-500.0,0.00015581,2]
[351706362,1738759839808,-500.0,0.00015581,2]
[351706364,1738759839817,-500.0,0.00015581,2]
[351706366,1738759839826,-821.49,0.00015581,2]
[351706368,1738759839835,-14720.18,0.00015581,2]
[351706370,1738759839845,-500.0,0.00015581,2]
[351706373,1738759839855,-500.0,0.00015581,2]
[351706375,1738759839864,-500.0,0.00015581,2]
[351706377,1738759839873,-500.0,0.00015581,2]
[351706379,1738759839883,-1155.57,0.00015581,2]
[351706380,1738759839892,-500.0,0.00015581,2]
[351706382,1738759839901,-500.0,0.00015581,2]
[351706385,1738759839911,-500.0,0.00015581,2]
[351706387,1738759839920,-500.0,0.00015581,2]
[351706389,1738759839930,-500.0,0.00015581,2]
[351706391,1738759839940,-500.0,0.00015581,2]
[351706393,1738759839949,-500.0,0.00015581,2]
[351706395,1738759839960,-500.0,0.00015581,2]
[351706397,1738759839970,-500.0,0.00015581,2]
[351706399,1738759839979,-500.0,0.00015581,2]
[351706401,1738759839989,-500.0,0.00015581,2]
[351706403,1738759839998,-500.0,0.00015581,2]
[351706405,1738759840007,-500.0,0.00015581,2]
[351706407,1738759840017,-500.0,0.00015581,2]
[351706409,1738759840026,-500.0,0.00015581,2]
[351706411,1738759840036,-500.0,0.00015581,2]
[351706413,1738759840046,-500.0,0.00015581,2]
[351706414,1738759840055,-500.0,0.00015581,2]
[351706416,1738759840064,-500.0,0.00015581,2]
[351706418,1738759840073,-500.0,0.00015581,2]
[351706420,1738759840083,-500.0,0.00015581,2]
[351706422,1738759840093,-500.0,0.00015581,2]
[351706424,1738759840103,-500.0,0.00015581,2]
[351706426,1738759840112,-500.0,0.00015581,2]
[351706429,1738759840121,-500.0,0.00015581,2]
[351706432,1738759840130,-500.0,0.00015581,2]
[351706435,1738759840139,-500.0,0.00015581,2]
[351706438,1738759840147,-500.0,0.00015581,2]
[351706440,1738759840156,-500.0,0.00015581,2]
[351706442,1738759840165,-500.0,0.00015581,2]
[351706444,1738759840174,-500.0,0.00015581,2]
[351706446,1738759840183,-500.0,0.00015581,2]
[351706448,1738759840192,-500.0,0.00015581,2]
[351706450,1738759840202,-500.0,0.00015581,2]
[351706452,1738759840211,-500.0,0.00015581,2]
[351706454,1738759840220,-217.2846328,0.00015581,2]
[351706456,1738759840229,-500.0,0.00015581,2]
[351706458,1738759840238,-500.0,0.00015581,2]